Cogmind - Beta 16.1 @@@ ROGUE MODE // 2026.03.07 @ 07:25:53 Player: Sen Result: Destroyed by X-67 Chaingunner with Minigun Performance ------------- Evolutions (4) 2000 Regions Visited (16) 3200 Robots Destroyed (160) 800 Value Destroyed (6002) 6002 Prototype IDs (23) 460 Alien Tech Used (1) 200 Bonus (1676) 1676 TOTAL SCORE: 14338 Bonus ------- High Alert Combat Kills 116 Follower Combat Kills 1057 Met Data Miner 300 Built Enhanced Grunts 300 Friendly Fire -97 Cogmind --------- Core Integrity 0/850 Matter 96/300 Energy 55/310 System Corruption 6% Temperature Cool (0) Movement Treading (160) Location -6/Hub_04(d) Parts ------- > --- POWER (1) -------- Fission Core > --- PROPULSION (4) --- Light Treads Improved Medium Treads Improved Medium Treads > --- UTILITY (9) ------ Improved Heat Sink High-capacity Storage Unit Advanced Sensor Array Improved Signal Interpreter Improved Hacking Suite Improved System Shield Improved System Shield > --- WEAPON (2) ------- Great Axe > --- INVENTORY (20) --- Trap Scanner Improved Light Armor Plating Improved Heavy Armor Plating Centrium Medium Armor Plating EM Shield Improved Field Recycling Unit (0) Ion Burst Cannon KE Penetrator Advanced Datajack Peak State ------------ > --- POWER ------------ Quantum Reactor > --- PROPULSION ------- Centrium Heavy Treads Centrium Heavy Treads > --- UTILITY ---------- High-capacity Storage Unit Advanced Sensor Array Improved Signal Interpreter Improved Light Armor Plating Improved Medium Armor Plating Centrium Medium Armor Plating Centrium Medium Armor Plating Thermal Shield Improved System Shield > --- WEAPON ----------- Powered Hammer Great Axe > --- INVENTORY -------- Fission Core Quantum Reactor Improved Medium Treads Improved Medium Treads Improved Medium Treads Trap Scanner Microactuators Cloaking Device Improved Heavy Armor Plating EM Shield Improved Hacking Suite Improved Hacking Suite Improved System Shield High-powered Shock Rifle Ion Burst Cannon Hypervelocity Gauss Rifle KE Penetrator Advanced Datajack [Rating: 107] Favorites ----------- Power Improved Deuterium Engine Engine Improved Deuterium Engine Power Core Fission Core Reactor Quantum Reactor Propulsion Compact Wheel Treads Armored Treads Leg Aluminum Leg Wheel Compact Wheel Hover Unit Gravmag System Utility Improved Signal Interpreter Device Sensor Array Storage Large Storage Unit Processor Improved Signal Interpreter Hackware System Shield Protection Improved Medium Armor Plating Weapon Great Axe Energy Gun Spread Laser Energy Cannon Ion Cannon Ballistic Gun Heavy Assault Rifle Ballistic Cannon Advanced Assault Cannon Launcher Rocket Launcher Special Weapon Mining Laser Impact Weapon Powered Hammer Slashing Weapon Great Axe Special Melee Weapon Datajack Build | -11 -10 -10 -9 -8 -7 -7 -7 -7 -6 -6 -6 -6 -6 -6 -6 -6 ------- Run | Yrd Mat Min Mat Mat Fac Low Low Dat Pro Fac Was Fac Ext Cet Arc Hub Slots Evolved 8 | . . . 2 2 2 . . . . 2 . . . . . . Power . | . . . . . . . . . . . . . . . . . Propulsion 2 | . . . . . 2 . . . . . . . . . . . Utility 6 | . . . 2 2 . . . . . 2 . . . . . . Weapon . | . . . . . . . . . . . . . . . . . Parts Attached 153 | 7 18 . 17 23 17 3 4 . 1 11 . 7 15 7 10 13 Power 17 | 2 4 . 1 3 1 . . . . 1 . . 2 1 . 2 Engine 11 | 2 3 . 1 3 1 . . . . . . . 1 . . . Core 4 | . 1 . . . . . . . . 1 . . 1 . . 1 Reactor 2 | . . . . . . . . . . . . . . 1 . 1 Propulsion 39 | 2 7 . 4 7 4 . 1 . . 3 . . 6 2 . 3 Treads 18 | . . . . 7 . . 1 . . . . . 5 2 . 3 Leg 14 | 2 7 . 4 . 1 . . . . . . . . . . . Wheel 5 | . . . . . 1 . . . . 3 . . 1 . . . Hover 2 | . . . . . 2 . . . . . . . . . . . Flight . | . . . . . . . . . . . . . . . . . Utility 66 | 1 4 . 8 7 7 2 2 . . 5 . 6 5 3 9 7 Device 25 | . 2 . 2 3 2 . . . . 4 . 3 2 . 4 3 Storage 4 | 1 2 . . . . . . . . . . 1 . . . . Processor 8 | . . . 1 2 1 1 . . . 1 . . 1 . 1 . Hackware 8 | . . . . . 1 . . . . . . 2 . 1 1 3 Protection 21 | . . . 5 2 3 1 2 . . . . . 2 2 3 1 Artifact . | . . . . . . . . . . . . . . . . . Weapon 31 | 2 3 . 4 6 5 1 1 . 1 2 . 1 2 1 1 1 Energy Gun 6 | . 2 . 1 2 1 . . . . . . . . . . . Energy Cannon 3 | . . . . . 1 . 1 . . . . . . 1 . . Ballistic Gun 10 | 2 . . 2 3 . . . . . 1 . . 1 . . 1 Ballistic Cannon 3 | . . . . . 2 . . . 1 . . . . . . . Launcher 3 | . 1 . . 1 . 1 . . . . . . . . . . Special Weapon 1 | . . . 1 . . . . . . . . . . . . . Impact Weapon 2 | . . . . . 1 . . . . . . . 1 . . . Slashing Weapon 1 | . . . . . . . . . . 1 . . . . . . Piercing Weapon . | . . . . . . . . . . . . . . . . . Special Melee Weapon 2 | . . . . . . . . . . . . 1 . . 1 . Unidentified Prototypes 3 | . . . . . . 1 . . . . . . . 2 . . Corrupted Parts 3 | . . . . . . . . . . . . . 3 . . . System Corruption 20 | . . . . . . . . . . . . . 20 . . . Parts Lost 43 | . 1 . 3 13 5 . 1 . 1 . . . 3 2 . 14 Power 2 | . . . . . . . . . . . . . . . . 2 Propulsion 13 | . . . 2 2 3 . 1 . 1 . . . 1 . . 3 Utility 18 | . . . 1 5 2 . . . . . . . 1 2 . 7 Weapon 10 | . 1 . . 6 . . . . . . . . 1 . . 2 Highest Loss Streak 6 | . 1 . 1 3 2 . 1 . 1 . . . 1 2 . 6 To Critical Strikes 1 | . . . . . . . . . . . . . . . . 1 Average Backups 14 | 1 8 15 13 13 12 14 14 15 15 14 15 18 18 17 18 16 Power 2 | . 1 2 1 2 3 4 4 4 4 3 3 3 2 1 2 1 Propulsion 1 | . 3 6 3 3 . . . . . . . . 1 3 3 2 Utility 4 | . . 2 2 1 2 2 3 3 3 3 5 9 8 7 8 7 Weapon 5 | . 2 3 4 4 4 7 6 7 7 6 6 6 5 5 4 2 Tool/Special . | . . . . . . . . . . . . . . . . . Unused Backups 28 | . 2 . 2 8 2 1 . . . 2 . 4 . 1 3 3 Power 8 | . 1 . . 4 . . . . . 2 . . . 1 . . Propulsion 7 | . 1 . 1 4 . . . . . . . . . . 1 . Utility 7 | . . . . . 2 1 . . . . . 1 . . 1 2 Weapon 5 | . . . 1 . . . . . . . . 2 . . 1 1 Tool/Special 1 | . . . . . . . . . . . . 1 . . . . Average Slot Usage (%) 90 | . 98 100 98 96 86 91 85 65 72 82 93 92 99 89 86 83 Engine 5 | . 11 14 11 9 6 7 7 7 7 5 . . . 1 . . Core 1 | . 2 . . . . . . . . . 6 6 5 . . . Treads 8 | . . . . 17 11 . 1 7 7 6 6 6 16 15 12 12 Leg 4 | . 28 28 21 . 1 . . . . . . . . . . . Wheel 4 | . . . . . 4 7 6 7 1 8 18 18 8 . . . Hover 1 | . . . . . 2 14 6 . . . . . . . . . Device 14 | . 12 14 13 14 10 16 10 7 13 23 25 12 11 16 16 18 Storage 7 | . 14 14 11 9 7 7 7 7 7 6 6 6 6 6 6 6 Processor 11 | . . . 10 22 16 11 14 14 14 12 12 12 11 6 6 6 Hackware 3 | . . . . . . . . . . . . 11 12 6 6 17 Protection 9 | . . . 7 4 9 13 16 14 7 6 6 5 13 18 18 6 Energy Gun 2 | . 12 11 10 5 4 . . . . . . . . . . . Energy Cannon 1 | . . . . . 2 3 3 1 7 3 . . . . . . Ballistic Gun 3 | . 15 14 11 9 . . 3 . . 2 6 1 . . . 1 Ballistic Cannon 1 | . . . . . 3 5 4 . 6 2 . . . . . . Launcher 1 | . . 2 . 2 . 4 2 . . . . . . . . . Impact Weapon 1 | . . . . . 2 . . . . . . . 4 5 6 2 Slashing Weapon 2 | . . . . . . . . . . 3 6 6 5 5 5 5 Peak Build Rating 107 | 6 10 8 12 25 50 51 49 48 49 62 62 63 75 101 107 107 Average Rating 47 | 4 7 8 11 20 34 48 46 43 40 53 62 59 67 94 101 96 On Entrance 44 | . 6 8 8 12 16 50 51 49 48 39 62 62 59 73 100 107 Avg Prop Armor Cover (%) 5 | . . . . . 7 5 3 5 5 6 6 6 6 . . . Naked Turns . | . . . . . . . . . . . . . . . . . Heaviest Build 104 | 12 31 31 35 42 77 72 79 76 76 63 59 76 104 103 93 94 Greatest Support 160 | 20 20 20 20 42 60 28 28 28 28 48 48 48 110 160 160 160 Greatest Overweight (x) 9 | . 1 1 1 1 6 2 2 2 3 3 1 1 9 1 . . Average Overweight (x) 1 | . . 1 1 . 1 1 2 2 2 1 1 1 1 . . . Largest Inventory Capacity 20 | 8 15 15 15 15 15 15 15 15 15 15 15 20 20 20 20 20 Average Capacity 16 | 6 10 15 15 15 15 15 15 15 15 15 15 19 20 20 20 20 Most Carried 20 | 2 15 15 15 15 15 15 15 15 15 15 15 20 20 20 20 20 Average Carried 15 | 1 8 14 13 13 12 14 14 15 15 14 15 18 19 19 19 17 Final Capacity 20 | 8 15 15 15 15 15 15 15 15 15 15 15 20 20 20 20 20 Final Carried 20 | 2 15 15 15 10 14 15 15 15 15 15 15 20 19 19 20 10 Class Distribution -------------------- 43% | Mutant 17% | Scavenger-Mutant 11% | Hacker-Mutant 8% | Scavenger-Gladiator 6% | Hacker-Gladiator 5% | Skirmisher 3% | Scavenger-Skirmisher Dominant Class ---------------- Mutant | -10/Materials Mutant | -10/Mines Mutant | -9/Materials Scavenger-Mutant | -8/Materials Mutant | -7/Factory Mutant | -7/Lower Caves Mutant | -7/Lower Caves Mutant | -7/Data Miner Mutant | -6/Proximity Caves Mutant | -6/Factory Scavenger-Mutant | -6/Waste Hacker-Mutant | -6/Factory Hacker-Gladiator | -6/Extension Scavenger-Gladiator | -6/Cetus Scavenger-Mutant | -6/Archives Hacker-Mutant | -6/Hub_04(d) Resources | -11 -10 -10 -9 -8 -7 -7 -7 -7 -6 -6 -6 -6 -6 -6 -6 -6 ----------- Run | Yrd Mat Min Mat Mat Fac Low Low Dat Pro Fac Was Fac Ext Cet Arc Hub Matter Collected 3977 | 182 341 43 317 573 393 480 238 . 106 186 . 70 400 242 184 222 Remotely . | . . . . . . . . . . . . . . . . . Salvage Created 6264 | . 717 86 467 1514 494 352 277 . 74 186 . 70 686 132 605 604 Parts 335 | . 40 11 38 77 17 12 10 . 6 10 . 8 30 3 39 34 Haulers Intercepted 3 | . 1 . 1 1 . . . . . . . . . . . . Recyclers Shooed 2 | . . . . 1 . . . . . . . . 1 . . . Parts Field Recycled . | . . . . . . . . . . . . . . . . . Retrieved Matter . | . . . . . . . . . . . . . . . . . Parts Self-Destructed 22 | . . . . . . 9 7 . 6 . . . . . . . Prevented . | . . . . . . . . . . . . . . . . . Parts Restored . | . . . . . . . . . . . . . . . . . Kills | -11 -10 -10 -9 -8 -7 -7 -7 -7 -6 -6 -6 -6 -6 -6 -6 -6 ------- Run | Yrd Mat Min Mat Mat Fac Low Low Dat Pro Fac Was Fac Ext Cet Arc Hub Combat Hostiles Destroyed 120 | . 13 6 12 39 7 6 7 . 3 1 . 1 7 2 4 12 Melee 22 | . . . . . . . . . . 1 . 1 6 2 4 8 Guns 57 | . 11 5 11 26 2 . . . . . . . . . . 2 Cannons 13 | . . . . . 4 2 3 . 3 . . . . . . 1 AOE 26 | . 2 1 1 13 1 4 4 . . . . . . . . . Classes Destroyed 18 | . 5 1 2 5 1 1 1 . . . . . 1 . . 1 Worker 7 | . 1 . 3 1 1 . . . . . . 1 . . . . Builder 6 | . . . . 3 1 . . . . . . 1 1 . . . Hauler 3 | . 1 . 1 1 . . . . . . . . . . . . Recycler 7 | . 1 . . 1 3 . . . . 1 . . 1 . . . Mechanic 2 | . . . . 2 . . . . . . . . . . . . Operator 12 | . 1 . . . . . . . . . . . 2 . 9 . Watcher 2 | . . . 1 1 . . . . . . . . . . . . Swarmer 24 | . . 6 3 7 . 3 . . 2 . . . . . . 3 Grunt 48 | . 13 . 4 19 2 2 3 . . . . . 3 . . 2 Brawler 3 | . . . . 1 1 . 1 . . . . . . . . . Duelist 6 | . . . . 5 . 1 . . . . . . . . . . Researcher 1 | . . . . . . 1 . . . . . . . . . . Sentry 21 | . . . 5 6 1 . 1 . . . . . 1 . 4 3 Specialist 2 | . . . . . . . . . . . . . . . . 2 Hunter 3 | . . . . 1 . . 1 . . . . . . . . 1 Programmer 7 | . . . . . 3 . . . 1 1 . 1 . . . 1 Behemoth 2 | . . . . . . . . . . . . . 2 . . . Cetus Guard 2 | . . . . . . . . . . . . . . 2 . . Butcher 1 | . . . . . . . . . . . . . 1 . . . Mutant 1 | . . . . . . . 1 . . . . . . . . . Best Kill Streak 7 | . 4 3 4 7 4 3 4 . 2 1 . 1 3 2 3 4 Combat Bots Only 7 | . 2 3 3 7 2 3 4 . 2 1 . 1 3 2 1 4 Max Kills in Single Turn 4 | . 1 2 3 4 2 2 2 . 1 1 . 1 1 1 1 1 Gunslinging 1 | . . 1 . . . . . . . . . . . . . . Exploded 4 | . 1 1 1 4 1 2 2 . . . . . . . . . Melee 1 | . . . . . . . . . . 1 . 1 1 1 1 1 Uniques/NPCs Destroyed . | . . . . . . . . . . . . . . . . . Combat | -11 -10 -10 -9 -8 -7 -7 -7 -7 -6 -6 -6 -6 -6 -6 -6 -6 -------- Run | Yrd Mat Min Mat Mat Fac Low Low Dat Pro Fac Was Fac Ext Cet Arc Hub Hostile Shots Fired 1085 | . 72 28 47 179 81 9 47 . 17 6 . 3 130 35 44 387 Missed 309 | . 24 7 10 39 29 3 18 . 5 2 . . 47 10 12 103 Hits 776 | . 48 21 37 140 52 6 29 . 12 4 . 3 83 25 32 284 Melee 6 | . . . . 4 1 1 . . . . . . . . . . Projectile 770 | . 48 21 37 136 51 5 29 . 12 4 . 3 83 25 32 284 AOE 1 | . 1 . . . . . . . . . . . . . . . Critical Strikes 18 | . . . 2 4 3 . . . . . . . . 5 2 2 Damage Taken 12688 | . 664 185 594 2412 957 175 666 . 220 44 . 31 757 1061 703 4219 Core 2003 | . 87 50 79 471 227 . 211 . 14 . . . 83 59 74 648 Absorbed by Shields 180 | . . . . . . . . . . . . . 171 9 . . Ignored by Resistances 550 | . . . . . 24 13 64 . . 16 . 12 95 135 70 121 Regen/Repaired (Parts) 369 | . . . 21 . . . . . . . . 348 . . . . Core Remaining (%) 54 | 100 . 45 80 14 . . . . 35 . . . . . . . Volleys Fired 320 | . 60 9 38 100 34 19 18 . 7 . . . 1 3 . 31 Largest 2 | . 2 2 2 2 2 2 2 . 2 . . . 1 2 . 2 Hottest 133 | . 80 80 100 88 100 100 105 . 100 . . . 33 133 . 133 Shots Fired 611 | . 120 17 71 194 66 38 38 . 14 . . . 1 7 . 45 Gun 440 | . 118 12 67 187 23 . 3 . . . . . 1 3 . 26 Cannon 136 | . . . . . 43 31 26 . 13 . . . . 4 . 19 Launcher 31 | . 2 5 . 7 . 7 9 . 1 . . . . . . . Special 4 | . . . 4 . . . . . . . . . . . . . Kinetic 298 | . 58 8 33 103 32 15 13 . 6 . . . 1 3 . 26 Thermal 250 | . 60 4 38 75 11 16 16 . 7 . . . . 4 . 19 Explosive 31 | . 2 5 . 7 . 7 9 . 1 . . . . . . . Electromagnetic 32 | . . . . 9 23 . . . . . . . . . . . Robot Hit Streak 23 | . 14 4 14 23 16 8 12 . 3 . . . . 4 . 8 Robot Miss Streak 8 | . 7 2 7 4 2 5 2 . 3 . . . 1 2 . 8 Penetration Max 1 | . . . . . . . . . . . . . . 1 . 1 Secondary Targets 10 | . 1 1 1 7 . . . . . . . . . . . . Max Gunslinging Chain 1 | . 1 1 1 1 . . . . . . . . . . . . Shots Hit Robots 554 | . 71 7 55 171 45 19 19 . 6 4 . 6 25 17 37 72 Core Hits 373 | . 37 7 49 187 14 12 15 . 4 2 . 1 7 8 11 19 Critical Kills 2 | . . . . . . 1 . . . . . . . . . 1 Critical Parts Destroyed 10 | . . . . 1 2 . . . . . . . 1 2 . 4 Critical Strikes 31 | . 2 2 . 1 2 1 2 . 1 1 . 2 5 3 2 7 Burn 4 | . 2 2 . . . . . . . . . . . . . . Meltdown 1 | . . . . . . 1 . . . . . . . . . . Destroy 6 | . . . . 1 . . . . . . . . . 1 . 4 Blast 3 | . . . . . . . 2 . 1 . . . . . . . Smash 5 | . . . . . 2 . . . . . . . 1 1 . 1 Sever 12 | . . . . . . . . . . 1 . 2 4 1 2 2 Melee Attacks 195 | . . . . . 14 3 8 . . 8 . 18 34 17 47 46 Impact 54 | . . . . . 14 3 8 . . . . . 5 5 8 11 Slashing 137 | . . . . . . . . . . 8 . 18 26 12 38 35 Piercing . | . . . . . . . . . . . . . . . . . Sneak Attacks 26 | . . . . . 2 1 . . . 1 . 2 8 . 11 1 Combat Hostiles . | . . . . . . . . . . . . . . . . . Follow-up Attacks 22 | . . . . . . . . . . . . . 3 4 5 10 Damage Inflicted 15566 | . 840 132 1138 3919 1499 850 684 . 168 201 . 344 1110 583 1990 2108 Guns 4748 | . 723 69 786 2717 177 . . . . . . . . 24 . 252 Cannons 2329 | . . . . . 778 403 321 . 144 . . . . 189 . 494 Explosions 2815 | . 117 63 351 1202 325 370 363 . 24 . . . . . . . Melee 5670 | . . . . . 216 77 . . . 201 . 344 1110 370 1990 1362 Ramming 4 | . . . 1 . 3 . . . . . . . . . . . Kinetic 3235 | . 277 43 357 1246 603 240 128 . 65 . . . . 24 . 252 Thermal 4469 | . 446 26 780 1599 500 163 193 . 79 . . . . 189 . 494 Explosive 1870 | . 117 63 . 933 . 370 363 . 24 . . . . . . . Electromagnetic 318 | . . . . 141 177 . . . . . . . . . . . Impact 993 | . . . . . 216 77 . . . . . . 104 99 154 343 Slashing 4677 | . . . . . . . . . . 201 . 344 1006 271 1836 1019 Piercing . | . . . . . . . . . . . . . . . . . Highest Corruption 29 | . . . . . 2 2 3 3 3 . . 3 19 29 29 6 Average Corruption 8 | . . . . . 1 2 2 3 3 . . 2 13 27 22 5 Corruption Purged 29 | . . . . . . . . . . . . . 5 . 24 . Corruption Blocked . | . . . . . . . . . . . . . . . . . Effects 241 | . . . . . 14 13 17 . 26 . . 5 56 34 45 31 Message Errors 61 | . . . . . 2 2 2 . 7 . . 3 16 12 9 8 Matter Fused 63 | . . . . . 5 1 6 . 8 . . 1 13 9 10 10 Heat Flow Errors 35 | . . . . . 1 2 2 . 2 . . . 9 5 10 4 Energy Discharges 29 | . . . . . 2 1 2 . 5 . . 1 9 3 4 2 Parts Rejected 2 | . . . . . . . 1 . . . . . . . . 1 Parts Fused 1 | . . . . . . . . . . . . . . . 1 . Data Loss (minor) 25 | . . . . . 2 5 2 . 2 . . . 5 . 7 2 Data Loss (major) 10 | . . . . . 2 . . . 1 . . . 3 1 2 1 Misfires 4 | . . . . . . 1 2 . . . . . . 1 . . Alerts 7 | . . . . . . . . . 1 . . . 1 1 2 2 Misdirections 2 | . . . . . . . . . . . . . . 2 . . Weapon Failures 2 | . . . . . . 1 . . . . . . . . . 1 Overload Shots . | . . . . . . . . . . . . . . . . . Overflow Damage 1455 | . . 7 45 18 293 89 24 . 12 . . 94 320 21 409 123 Projectiles 153 | . . . . . 25 72 24 . 12 . . . . . . 20 Explosions 205 | . . 7 45 18 135 . . . . . . . . . . . Melee 1097 | . . . . . 133 17 . . . . . 94 320 21 409 103 Knockbacks 15 | . . . . . 9 2 . . 1 . . . . 1 . 2 Impact 6 | . . . . . 2 1 . . . . . . . 1 . 2 Kinetic 9 | . . . . . 7 1 . . 1 . . . . . . . Secondary . | . . . . . . . . . . . . . . . . . Self-Inflicted Damage 863 | . . 13 142 209 334 80 40 . 45 . . . . . . . Shots 18 | . . 1 2 6 4 3 1 . 1 . . . . . . . Rammed 1 | . . . . . 1 . . . . . . . . . . . Targets Rammed 2 | . . . 1 . 1 . . . . . . . . . . . Kicked 1 | . . . 1 . . . . . . . . . . . . . Crushed . | . . . . . . . . . . . . . . . . . Highest Temperature 476 | . 229 70 330 198 278 128 198 . 196 . . . 289 374 279 476 Average Temperature 87 | . 54 20 71 45 65 40 41 . 91 . . . 113 149 92 161 Received Heat Transfer 2799 | . 348 . 198 1080 120 18 60 . . . . . 288 126 126 435 Effects 22 | . . . 3 . 4 . . . . . . . 6 3 1 5 Shutdowns 1 | . . . . . . . . . . . . . . . . 1 Energy Bleed 6 | . . . . . 1 . . . . . . . 1 3 . 1 Interference 15 | . . . 3 . 3 . . . . . . . 5 . 1 3 Siege Activations . | . . . . . . . . . . . . . . . . . Martial Activations . | . . . . . . . . . . . . . . . . . Shielding Activations . | . . . . . . . . . . . . . . . . . Robots Disrupted . | . . . . . . . . . . . . . . . . . Combat Hostiles . | . . . . . . . . . . . . . . . . . Robots Corrupted 7 | . . . . . 3 1 . . . . . . 2 . . 1 Combat Hostiles 2 | . . . . . . . . . . . . . 1 . . 1 Parts Fried 15 | . . . . . 5 2 . . . . . . 4 1 . 3 Impact Corruptions 13 | . . . . . 6 2 . . . . . . 2 1 . 2 Robots Melted 1 | . . . . . . 1 . . . . . . . . . . Combat Hostiles 1 | . . . . . . 1 . . . . . . . . . . Parts Melted 2 | . . . 2 . . . . . . . . . . . . . Heat Transferred 6258 | . 1267 222 1006 1925 409 259 259 . 111 . . . . 225 . 575 Parts Sabotaged . | . . . . . . . . . . . . . . . . . Parts Stolen . | . . . . . . . . . . . . . . . . . Parts Stripped . | . . . . . . . . . . . . . . . . . Power Chain Reactions 3 | . . . . 3 . . . . . . . . . . . . Alert | -11 -10 -10 -9 -8 -7 -7 -7 -7 -6 -6 -6 -6 -6 -6 -6 -6 ------- Run | Yrd Mat Min Mat Mat Fac Low Low Dat Pro Fac Was Fac Ext Cet Arc Hub Maximum Alert Level 3 | . . . . 3 1 . . . . . . . . . . . Low Security (%) 90 | 100 100 100 100 46 77 . . . . 100 100 100 100 100 100 100 Level 1 4 | . . . . 9 22 . . . . . . . . . . . Level 2 5 | . . . . 43 . . . . . . . . . . . . Level 3 . | . . . . . . . . . . . . . . . . . Level 4 . | . . . . . . . . . . . . . . . . . Level 5 . | . . . . . . . . . . . . . . . . . High Security . | . . . . . . . . . . . . . . . . . Max Security . | . . . . . . . . . . . . . . . . . Peak Influence 710 | . 104 87 157 710 318 . . . . 30 . 30 175 181 38 110 Initial 318 | . . 37 18 21 318 . . . . . . . . 71 38 . Average 90 | . 41 28 47 315 168 . . . . 2 . 2 96 41 3 27 Influence Increases 4908 | . 432 166 443 1282 412 150 140 . 80 73 . 102 790 349 127 362 Destroy 0b10 Robot/C 2820 | . 260 120 240 780 140 120 120 . 60 20 . 20 460 160 80 240 Destroy 0b10 Robot/NC 220 | . 20 . 25 45 25 10 . . . 5 . 10 35 . 45 . Destroy Leader 606 | . 72 20 64 164 50 20 20 . 20 10 . 10 66 20 . 70 Allied During Kill 261 | . . . . . . . . . . . . . 143 118 . . Successful Hack 214 | . 29 . 26 21 39 . . . . 20 . 36 . 22 . 21 Disable Machine 285 | . 15 . 60 30 105 . . . . 15 . 15 30 15 . . Anti-Garrison Action 150 | . . . . 150 . . . . . . . . . . . . Destroy Structure 202 | . 6 26 28 62 38 . . . . 3 . 11 11 14 2 1 Lose Combat Pursuer 150 | . 30 . . 30 15 . . . . . . . 45 . . 30 Influence Decreases 4893 | . 334 215 440 634 978 284 140 . 80 73 . 102 662 382 222 347 Entered New Map 670 | . . 61 31 31 382 51 . . . . . . . 57 57 . Time Decay 3521 | . 324 154 379 493 546 233 140 . 80 73 . 102 432 145 165 255 Lost Part 322 | . 10 . 30 110 50 . . . . . . . 30 . . 92 Lost Ally 380 | . . . . . . . . . . . . . 200 180 . . Squads Dispatched 33 | . 4 . 1 8 5 . . . . 3 . 2 3 2 . 5 Investigation 8 | . 2 . . 2 1 . . . . 1 . . . 2 . . Extermination 6 | . . . . . 3 . . . . 1 . 1 . . . 1 Reinforcement 14 | . 2 . 1 1 1 . . . . 1 . 1 3 . . 4 Assault 2 | . . . . 2 . . . . . . . . . . . . Garrison 3 | . . . . 3 . . . . . . . . . . . . Intercept . | . . . . . . . . . . . . . . . . . Searches Triggered . | . . . . . . . . . . . . . . . . . Construction Impeded 3 | . . . 1 1 . . . . . . . . 1 . . . Haulers Reinforced 1 | . . . . . 1 . . . . . . . . . . . Active Scanning Responses . | . . . . . . . . . . . . . . . . . Cargo Convoy Interrupts 1 | . . . . . . . . . . 1 . . . . . . Stealth | -11 -10 -10 -9 -8 -7 -7 -7 -7 -6 -6 -6 -6 -6 -6 -6 -6 --------- Run | Yrd Mat Min Mat Mat Fac Low Low Dat Pro Fac Was Fac Ext Cet Arc Hub Distress Signals 14 | . 4 . 3 3 . . . . . . . . . 2 . 2 Communications Jammed . | . . . . . . . . . . . . . . . . . Distress Signals . | . . . . . . . . . . . . . . . . . Times Spotted 203 | . 27 6 21 55 8 5 7 . 4 1 4 3 25 9 6 22 Peak Tracking Total 10 | . 5 3 5 10 3 3 4 . 3 1 4 1 5 5 1 4 Tactical Retreats 10 | . 2 . . 2 1 . . . . . . . 3 . . 2 Traps | -11 -10 -10 -9 -8 -7 -7 -7 -7 -6 -6 -6 -6 -6 -6 -6 -6 ------- Run | Yrd Mat Min Mat Mat Fac Low Low Dat Pro Fac Was Fac Ext Cet Arc Hub Traps Triggered 10 | . 1 . . 1 5 . . . . 3 . . . . . . Indirectly . | . . . . . . . . . . . . . . . . . Trap Hack Attempts 14 | . . . . . . . . . . . . 14 . . . . Triggered . | . . . . . . . . . . . . . . . . . Disarmed 2 | . . . . . . . . . . . . 2 . . . . Reprogrammed 1 | . . . . . . . . . . . . 1 . . . . Reused . | . . . . . . . . . . . . . . . . . Traps Extracted . | . . . . . . . . . . . . . . . . . Installed . | . . . . . . . . . . . . . . . . . Triggered . | . . . . . . . . . . . . . . . . . Machines | -11 -10 -10 -9 -8 -7 -7 -7 -7 -6 -6 -6 -6 -6 -6 -6 -6 ---------- Run | Yrd Mat Min Mat Mat Fac Low Low Dat Pro Fac Was Fac Ext Cet Arc Hub Machines Disabled 22 | . 1 . 4 3 7 . 1 . . 1 . 1 2 2 . . Max in Single Turn 5 | . 1 . 3 1 5 . 1 . . 1 . 1 . . . . Garrison Access 1 | . . . . 1 . . . . . . . . . . . . Machines Repaired . | . . . . . . . . . . . . . . . . . Machines Dismantled . | . . . . . . . . . . . . . . . . . Machines Sabotaged . | . . . . . . . . . . . . . . . . . Overloaded Fab Kills . | . . . . . . . . . . . . . . . . . Hacking | -11 -10 -10 -9 -8 -7 -7 -7 -7 -6 -6 -6 -6 -6 -6 -6 -6 --------- Run | Yrd Mat Min Mat Mat Fac Low Low Dat Pro Fac Was Fac Ext Cet Arc Hub Machines Accessed 50 | . 4 . 8 5 5 . 1 4 . 5 . 6 7 2 1 2 Terminals 30 | . 4 . 5 4 3 . . . . 2 . 3 5 2 . 2 Fabricators 2 | . . . . . . . . . . 1 . 1 . . . . Repair Stations 3 | . . . 1 . 1 . . . . . . 1 . . . . Recycling Units 3 | . . . . 1 . . . . . . . . 2 . . . Scanalyzers 4 | . . . 2 . 1 . . . . . . 1 . . . . Garrison Access 2 | . . . . . . . . . . 2 . . . . . . Total Hacks 208 | . 13 . 24 21 17 . 1 28 . 12 . 27 20 10 25 10 Successful 123 | . 8 . 13 11 5 . 1 28 . 7 . 11 4 4 25 6 Failed 83 | . 5 . 10 10 12 . . . . 5 . 15 16 6 . 4 Catastrophic 18 | . . . 1 2 4 . . . . 2 . 2 4 3 . . Database Lockouts 2 | . . . 1 . . . . . . . . 1 . . . . Manual 68 | . 8 . 10 15 6 . . . . 2 . 8 9 2 1 7 Terminals 118 | . 13 . 14 20 10 . . . . 7 . 16 18 10 . 10 Fabricators 5 | . . . . . . . . . . 2 . 3 . . . . Repair Stations 10 | . . . 3 . 2 . . . . . . 5 . . . . Recycling Units 3 | . . . . 1 . . . . . . . . 2 . . . Scanalyzers 15 | . . . 7 . 5 . . . . . . 3 . . . . Garrison Access 3 | . . . . . . . . . . 3 . . . . . . Terminal Hacks 93 | . 6 . 4 8 3 . 1 28 . 4 . 4 2 4 25 4 Record 42 | . . . . . . . . 11 . 2 . . . 4 25 . Part Schematic 8 | . . . . . . . . 8 . . . . . . . . Robot Schematic 6 | . . . . . . . . 6 . . . . . . . . Robot Analysis 4 | . 1 . . 3 . . . . . . . . . . . . Prototype ID Bank 8 | . . . 3 . 1 . . 3 . . . . 1 . . . Open Door 1 | . . . . . . . 1 . . . . . . . . . Branch Access Points 2 | . 1 . . . . . . . . . . . . . . 1 Emergency Access Points 4 | . 2 . . 2 . . . . . . . . . . . . Terminal Index 1 | . . . . . . . . . . . . . . . . 1 Locate Traps 7 | . 1 . . 1 2 . . . . 1 . 1 . . . 1 Recall Investigation 1 | . . . . . . . . . . . . 1 . . . . Recall Reinforcements 1 | . . . . . . . . . . . . 1 . . . . Zone Layout 8 | . 1 . 1 2 . . . . . 1 . 1 1 . . 1 Fabricator Hacks 2 | . . . . . . . . . . 2 . . . . . . Load Schematic 1 | . . . . . . . . . . 1 . . . . . . Build 1 | . . . . . . . . . . 1 . . . . . . Repair Station Hacks 6 | . . . 2 . . . . . . . . 4 . . . . Scan Component 3 | . . . 1 . . . . . . . . 2 . . . . Repair 3 | . . . 1 . . . . . . . . 2 . . . . Recycling Unit Hacks 3 | . . . . 1 . . . . . . . . 2 . . . Report Inventory 2 | . . . . . . . . . . . . . 2 . . . Retrieve Components 1 | . . . . 1 . . . . . . . . . . . . Scanalyzer 8 | . . . 5 . 2 . . . . . . 1 . . . . Insert Component 3 | . . . 2 . 1 . . . . . . . . . . . Analyze 2 | . . . 1 . 1 . . . . . . . . . . . Retrieve Study 3 | . . . 2 . . . . . . . . 1 . . . . Garrison Access Hacks . | . . . . . . . . . . . . . . . . . Unauthorized Hacks 11 | . 2 . 2 2 . . . . . 1 . 2 . . . 2 Terminals 11 | . 2 . 2 2 . . . . . 1 . 2 . . . 2 Assimilate 1 | . . . . . . . . . . . . 1 . . . . Botnet 5 | . 1 . 1 1 . . . . . . . 1 . . . 1 Operators 5 | . 1 . 1 1 . . . . . 1 . . . . . 1 Fabricators . | . . . . . . . . . . . . . . . . . Repair Stations . | . . . . . . . . . . . . . . . . . Recycling Units . | . . . . . . . . . . . . . . . . . Scanalyzers . | . . . . . . . . . . . . . . . . . Garrison Access . | . . . . . . . . . . . . . . . . . Data Cores Recovered . | . . . . . . . . . . . . . . . . . Used . | . . . . . . . . . . . . . . . . . Hacking Detections 41 | . 4 . 7 5 5 . . . . 5 . 5 6 2 . 2 Full Trace Events 7 | . 1 . 1 1 1 . . . . 1 . . . 2 . . Feedback Events 1 | . . . . . 1 . . . . . . . . . . . Hackware Fried 1 | . . . . . 1 . . . . . . . . . . . Feedback Blocked . | . . . . . . . . . . . . . . . . . Robot Schematics Acquired 6 | . . . . . . . . 6 . . . . . . . . Robots Built 2 | . . . . . . . . . . 2 . . . . . . Authchips . | . . . . . . . . . . . . . . . . . Time 116 | . . . . . . . . . . 116 . . . . . . Total Robot Build Rating 6 | . . . . . . . . . . 6 . . . . . . Part Schematics Acquired 10 | . . . 1 . 1 . . 8 . . . . . . . . Parts Built . | . . . . . . . . . . . . . . . . . Authchips . | . . . . . . . . . . . . . . . . . Time . | . . . . . . . . . . . . . . . . . Total Part Build Rating . | . . . . . . . . . . . . . . . . . Part Studies Acquired 3 | . . . 2 . . . . . . . . 1 . . . . Parts Repaired 3 | . . . 1 . . . . . . . . 2 . . . . Time 120 | . . . 26 . . . . . . . . 94 . . . . Parts Recycled . | . . . . . . . . . . . . . . . . . Recycled Matter . | . . . . . . . . . . . . . . . . . Retrieved Matter . | . . . . . . . . . . . . . . . . . Retrieved Components 1 | . . . . 1 . . . . . . . . . . . . Parts Scanalyzed 2 | . . . 1 . 1 . . . . . . . . . . . Part Schematics Acquired 2 | . . . 1 . 1 . . . . . . . . . . . Parts Damaged . | . . . . . . . . . . . . . . . . . Bothacking | -11 -10 -10 -9 -8 -7 -7 -7 -7 -6 -6 -6 -6 -6 -6 -6 -6 ------------ Run | Yrd Mat Min Mat Mat Fac Low Low Dat Pro Fac Was Fac Ext Cet Arc Hub Used RIF Installer . | . . . . . . . . . . . . . . . . . Robots Hacked 1 | . . . . . . . . . . . . . . . 1 . Non-combat 1 | . . . . . . . . . . . . . . . 1 . Combat . | . . . . . . . . . . . . . . . . . Robot Hacks Applied 1 | . . . . . . . . . . . . . . . 1 . check_alert 1 | . . . . . . . . . . . . . . . 1 . Relay Couplers Released 1 | . . . . 1 . . . . . . . . . . . . Machine Destruction 1 | . . . . 1 . . . . . . . . . . . . Fabnet Peak Effective % . | . . . . . . . . . . . . . . . . . Robots Rewired 8 | . . . . . . . . . . . . . 8 . . . Allies Hacked . | . . . . . . . . . . . . . . . . . Hacks Repelled . | . . . . . . . . . . . . . . . . . Allies | -11 -10 -10 -9 -8 -7 -7 -7 -7 -6 -6 -6 -6 -6 -6 -6 -6 -------- Run | Yrd Mat Min Mat Mat Fac Low Low Dat Pro Fac Was Fac Ext Cet Arc Hub Total Allies 24 | . . . . . . . . . . 2 . 1 16 5 . . Largest Group 6 | . . . . . . . . . . 2 . 1 6 6 . . Highest-Rated Group 480 | . . . . . . . . . . 42 . 26 280 480 . . Highest-Rated Ally 159 | . . . . . . . . . . 21 . 26 159 127 . . Total Orders 6 | . . . . . . . . . . . . 1 2 3 . . FOLLOW 1 | . . . . . . . . . . . . 1 . . . . GUARD 1 | . . . . . . . . . . . . . . 1 . . EXPLORE 4 | . . . . . . . . . . . . . 2 2 . . Ally Attacks 231 | . . . . . . . . . . 3 . . 164 64 . . Total Damage 4916 | . . . . . . . . . . 19 . . 2998 1899 . . Kills 25 | . . . . . . . . . . . . . 19 6 . . Allies Corrupted . | . . . . . . . . . . . . . . . . . Allies Melted . | . . . . . . . . . . . . . . . . . Intel | -11 -10 -10 -9 -8 -7 -7 -7 -7 -6 -6 -6 -6 -6 -6 -6 -6 ------- Run | Yrd Mat Min Mat Mat Fac Low Low Dat Pro Fac Was Fac Ext Cet Arc Hub Active Infowar (turns) 14277 | . 872 481 1176 1348 1045 1618 431 . 1474 1057 89 935 1335 570 1065 781 Optics 198 | . . . . . . . . . . . . . 198 . . . Sensors 11540 | . 510 . 352 627 734 1618 431 . 1474 1057 89 935 1335 570 1065 743 Terrain 2851 | . . . 69 1348 982 452 . . . . . . . . . . Structural 1950 | . 362 481 1107 . . . . . . . . . . . . . Traps 173 | . . . . . . . . . . . . . . . . 173 Cloaking 1135 | . . . . . . . . . . . . 170 210 . . 755 Robot Analysis Total 4 | . 1 . . 3 . . . . . . . . . . . . Derelict Logs Recovered 5 | . . 1 . . . 1 1 . 2 . . . . . . . Drone Launches 2 | . . . . . . . . . . . . . 2 . . . Drone Recoveries . | . . . . . . . . . . . . . . . . . Exploration | -11 -10 -10 -9 -8 -7 -7 -7 -7 -6 -6 -6 -6 -6 -6 -6 -6 ------------- Run | Yrd Mat Min Mat Mat Fac Low Low Dat Pro Fac Was Fac Ext Cet Arc Hub Turns Passed 16677 | 56 981 481 1337 1649 1575 1619 940 131 1505 1057 89 964 1699 627 1065 902 Spaces Moved 8212 | 41 438 237 574 451 929 1042 639 98 594 455 76 681 936 327 419 275 Core 6 | 5 . . . . 1 . . . . . . . . . . . Treads 2699 | . . . . 451 293 . . . 351 141 . . 442 327 419 275 Legs 1285 | 36 438 237 574 . . . . . . . . . . . . . Wheels 4222 | . . . . . 635 1042 639 98 243 314 76 681 494 . . . Hover . | . . . . . . . . . . . . . . . . . Flight . | . . . . . . . . . . . . . . . . . Fastest Speed 50 | 50 120 190 175 152 115 115 130 130 130 115 115 105 101 160 160 160 Average Speed 156 | 111 136 190 180 175 136 129 130 130 248 199 115 112 157 162 160 160 Slowest Speed 410 | 120 190 190 190 240 350 130 130 130 410 410 115 115 243 243 160 160 Overloaded Moves . | . . . . . . . . . . . . . . . . . Propulsion Burnouts . | . . . . . . . . . . . . . . . . . Robots Hopped . | . . . . . . . . . . . . . . . . . Potential Cave-ins . | . . . . . . . . . . . . . . . . . Cave-ins Triggered 2 | . . . . . . . 1 . . . . . . 1 . . Exploration Rate (%) 55 | 3 72 70 50 49 20 92 62 70 74 11 62 15 98 67 98 23 Regions Visited 16 Branch Regions 9 Pre-discovered Areas 2 | . . . . . . . 1 1 . . . . . . . . Known Exits Taken 13 | . 1 1 1 1 1 1 1 1 1 . . 1 1 1 1 . Unknown Exits Taken 1 | 1 . . . . . . . . . . . . . . . . Scrap Searched 7 | . . 2 . . . 3 2 . . . . . . . . . Spaces Dug 50 | . . 11 . . 4 2 13 . . 3 . 11 3 . 2 1 Terrain Destroyed 334 | . 4 33 30 72 58 55 56 . 6 3 . 11 3 . 2 1 Melee 28 | . . . . . 4 2 2 . . 3 . 11 3 . 2 1 Projectile 12 | . . . . . 3 3 5 . 1 . . . . . . . AOE 294 | . 4 33 30 72 51 50 49 . 5 . . . . . . . Terrain Rammed . | . . . . . . . . . . . . . . . . . Walls Destroyed . | . . . . . . . . . . . . . . . . . Machines Disabled . | . . . . . . . . . . . . . . . . . Actions | -11 -10 -10 -9 -8 -7 -7 -7 -7 -6 -6 -6 -6 -6 -6 -6 -6 --------- Run | Yrd Mat Min Mat Mat Fac Low Low Dat Pro Fac Was Fac Ext Cet Arc Hub Total 11194 | 48 711 253 798 1120 1144 1262 698 103 610 597 77 852 1130 398 762 631 Wait 1947 | . 173 1 141 503 103 182 12 . 4 92 2 109 58 31 276 260 Move 8197 | 40 437 236 573 450 928 1041 638 97 593 455 75 680 935 326 418 275 Hop . | . . . . . . . . . . . . . . . . . Pick Up 100 | 1 10 2 8 17 16 4 4 1 . 5 . 11 5 5 9 2 Fast Attach 64 | 6 3 . 4 4 16 1 3 2 1 8 . 3 6 2 2 3 Attach 52 | . 1 . 4 10 10 2 . . . 1 . 1 8 2 2 11 Detach 18 | . 2 . 2 . 5 . . . . 2 . 2 5 . . . Swap 119 | 1 15 3 13 14 8 8 7 . 4 2 . 5 11 9 7 12 Drop 116 | . 10 2 14 22 9 2 8 3 1 8 . 9 9 8 9 2 Fire 320 | . 60 9 38 100 34 19 18 . 7 . . . 1 3 . 31 Melee 166 | . . . . . 14 3 8 . . 8 . 18 29 12 39 35 Ram 1 | . . . . . 1 . . . . . . . . . . . Kick 1 | . . . 1 . . . . . . . . . . . . . Crush . | . . . . . . . . . . . . . . . . . Escape Stasis 16 | . . . . . . . . . . 16 . . . . . . Rewire 63 | . . . . . . . . . . . . . 63 . . . Trap 14 | . . . . . . . . . . . . 14 . . . . Miscellaneous . | . . . . . . . . . . . . . . . . . Route ------- -11/Scrapyard -10/Materials (discovered 3 exits: *Mat / *Min x2) -10/Mines (discovered 3 exits: *Mat x2 / [Sub]) -9/Materials (discovered 2 exits: *Mat / *Min) -8/Materials -7/Factory (discovered 2 exits: *Fac / *Low) -7/Lower Caves -7/Lower Caves (discovered 2 exits: *Fac / *Dat) -7/Data Miner -6/Proximity Caves -6/Factory -6/Waste -6/Factory (discovered 2 exits: *Fac / *Ext) -6/Extension (discovered 2 exits: *Fac / *Cet) -6/Cetus -6/Archives (discovered 3 exits: *Fac / *Hub x2) -6/Hub_04(d) (discovered 1 exit: *Fac) History --------- Turn | Location | Event 9 | -11/Scrapyard | Discovered new exit (range 14) 57 | -11/Scrapyard | Entered Materials 74 | -10/Materials | Identified exit to Mines 303 | -10/Materials | Build established: Mutant 423 | -10/Materials | Discovered new exit (range 11) 1038 | -10/Materials | Entered Mines 1204 | -10/Mines | Found a hidden stash of uninstalled traps 1255 | -10/Mines | Discovered new exit (range 10) 1259 | -10/Mines | Identified exit to Materials 1426 | -10/Mines | Core integrity fell below 50% 1490 | -10/Mines | Discovered exit to Materials (range 16) 1519 | -10/Mines | Entered Materials 1519 | -9/Materials | Evolved 2 slots: Utility x2 1984 | -9/Materials | Central database locked down 2109 | -9/Materials | Repaired Ion Engine+ 2138 | -9/Materials | Discovered new exit (range 16) 2182 | -9/Materials | Identified exit to Mines 2353 | -9/Materials | Build established: Scavenger-Mutant 2530 | -9/Materials | Discovered new exit (range 13) 2656 | -9/Materials | Identified exit to Materials 2666 | -9/Materials | Build established: Mutant 2856 | -9/Materials | Entered another Materials area 2856 | -8/Materials | Evolved 2 slots: Utility x2 3094 | -8/Materials | Build established: Scavenger-Mutant 3562 | -8/Materials | Garrison activated, responded to threat 3643 | -8/Materials | Destroyed 7 combat bots 3869 | -8/Materials | Core integrity fell below 50% 4184 | -8/Materials | Build established: Scavenger-Skirmisher 4433 | -8/Materials | Discovered new exit (range 16) 4494 | -8/Materials | Core integrity fell below 20% 4503 | -8/Materials | Identified exit to Factory 4505 | -8/Materials | Entered Factory 4505 | -7/Factory | Evolved 2 slots: Propulsion x2 4528 | -7/Factory | Lost 3 parts (1n2w) 4552 | -7/Factory | Discovered new exit (range 11) 4583 | -7/Factory | Identified exit to Factory 4663 | -7/Factory | Hacking Suite fried by hacking feedback 5822 | -7/Factory | Build established: Mutant 5977 | -7/Factory | Discovered new exit (range 14) 5994 | -7/Factory | Identified exit to Lower Caves 6080 | -7/Factory | Entered Lower Caves 6276 | -7/Lower Caves | Found Alien Artifact 6277 | -7/Lower Caves | Identified Core Expander 6277 | -7/Lower Caves | Installed Core Expander, added new Utility slot 6633 | -7/Lower Caves | Build established: Skirmisher 7061 | -7/Lower Caves | Build established: Mutant 7231 | -7/Lower Caves | Spotted B-75 Beast 7297 | -7/Lower Caves | Identified exit to Lower Caves 7505 | -7/Lower Caves | Encountered a Warlord checkpoint 7699 | -7/Lower Caves | Entered another Lower Caves area 7786 | -7/Lower Caves | Learned location of Zion (-6) 7835 | -7/Lower Caves | Discovered exit to Factory (range 6) 7893 | -7/Lower Caves | Crushed by falling debris 7893 | -7/Lower Caves | Core integrity fell below 50% 8189 | -7/Lower Caves | Attracted the attention of an 0b10 checkpoint 8278 | -7/Lower Caves | Discovered new exit (range 8) 8291 | -7/Lower Caves | Identified exit to Data Miner 8378 | -7/Lower Caves | Attacked by a delusional Derelict stockpiling parts 8639 | -7/Lower Caves | Entered Data Miner 8641 | -7/Data Miner | Discovered new exit (range 6) 8650 | -7/Data Miner | Identified exit to Proximity Caves 8668 | -7/Data Miner | Met Data Miner 8699 | -7/Data Miner | Learned location of Section 7 (-2) 8699 | -7/Data Miner | Acquired the access code to Warlord's prototype stash 8722 | -7/Data Miner | Received God Mode back door access code from Data Miner 8770 | -7/Data Miner | Entered Proximity Caves 10103 | -6/Proximity Caves | Learned Factory stockpile data 10275 | -6/Proximity Caves | Entered Factory 10275 | -6/Factory | Evolved 2 slots: Utility x2 10956 | -6/Factory | Fabricated H-55 Commando? 11122 | -6/Factory | Discovered new exit (range 13) 11127 | -6/Factory | Cargo convoy interrupted 11136 | -6/Factory | Build established: Scavenger-Mutant 11136 | -6/Factory | Identified exit to Factory 11332 | -6/Factory | Sucked down chute 11332 | -6/Factory | Entered Waste 11354 | -6/Waste | Spotted C-40 Crusher 11355 | -6/Waste | Spotted C-40 Crusher 11358 | -6/Waste | Spotted C-40 Crusher 11371 | -6/Waste | Spotted C-40 Crusher 11379 | -6/Waste | Spotted C-40 Crusher 11399 | -6/Waste | Spotted C-40 Crusher 11409 | -6/Waste | Discovered new exit (range 11) 11420 | -6/Waste | Identified exit to Factory 11421 | -6/Waste | Entered Factory 11490 | -6/Factory | Discovered exit to Factory (range 3) 11734 | -6/Factory | Build established: Hacker-Mutant 11871 | -6/Factory | Repaired Med. Reactive Plating 11922 | -6/Factory | Repaired Imp. Heavy Armor Plating 12192 | -6/Factory | Central database locked down 12368 | -6/Factory | Discovered new exit (range 16) 12383 | -6/Factory | Identified exit to Extension 12385 | -6/Factory | Entered Extension 12385 | -6/Extension | Accompanied by 1 ally 12472 | -6/Extension | Spotted B-75 Beast 12687 | -6/Extension | Rescued a captive Derelict 12687 | -6/Extension | Rescued a captive Derelict 12883 | -6/Extension | Rescued a captive Derelict 12884 | -6/Extension | Rescued a captive Derelict 12902 | -6/Extension | Rescued a captive Derelict 12911 | -6/Extension | Rescued a captive Derelict 12944 | -6/Extension | Rescued A7 13022 | -6/Extension | Spotted B-75 Beast 13035 | -6/Extension | Destroyed B-75 Beast 13043 | -6/Extension | System corruption reached 10% 13059 | -6/Extension | Lost 4 allies 13063 | -6/Extension | Destroyed B-75 Beast 13070 | -6/Extension | Build established: Hacker-Gladiator 13322 | -6/Extension | Rescued a captive Derelict 13797 | -6/Extension | Discovered exit to Factory (range 10) 13801 | -6/Extension | Discovered new exit (range 7) 13821 | -6/Extension | Identified exit to Cetus 14084 | -6/Extension | Entered Cetus 14084 | -6/Cetus | Accompanied by 8 allies (A7) 14089 | -6/Cetus | Acquired a Cetus Manufacturing Module code from A7 14089 | -6/Cetus | Spotted Cetus Guard 14089 | -6/Cetus | Spotted Cetus Guard 14106 | -6/Cetus | Spotted Cetus Guard 14107 | -6/Cetus | Spotted Cetus Guard 14114 | -6/Cetus | Build established: Hacker-Mutant 14117 | -6/Cetus | Allies destroyed Cetus Guard 14124 | -6/Cetus | Extracted ID and sensor layout for unrecognized location from A7's data core 14147 | -6/Cetus | Crushed by falling debris 14168 | -6/Cetus | Destroyed Cetus Guard 14179 | -6/Cetus | Lost 8 allies 14188 | -6/Cetus | Destroyed Cetus Guard 14407 | -6/Cetus | Started Cetus Manufacturing Module 14432 | -6/Cetus | Manufactured an Enhanced Grunt 14440 | -6/Cetus | Build established: Scavenger-Gladiator 14457 | -6/Cetus | Manufactured an Enhanced Grunt 14482 | -6/Cetus | Manufactured an Enhanced Grunt 14507 | -6/Cetus | Manufactured an Enhanced Grunt 14532 | -6/Cetus | Manufactured an Enhanced Grunt 14595 | -6/Cetus | Discovered new exit (range 16) 14617 | -6/Cetus | Identified exit to Archives 14650 | -6/Cetus | Spotted Cetus Guard 14651 | -6/Cetus | Spotted Cetus Guard 14685 | -6/Cetus | Spotted Cetus Guard 14711 | -6/Cetus | Entered Archives 14716 | -6/Archives | Lost 3 allies 15020 | -6/Archives | Unable to access archive contents 15037 | -6/Archives | Unable to access archive contents 15065 | -6/Archives | Unable to access archive contents 15081 | -6/Archives | Unable to access archive contents 15103 | -6/Archives | Unable to access archive contents 15119 | -6/Archives | Discovered exit to Factory (range 13) 15180 | -6/Archives | Discovered new exit (range 14) 15303 | -6/Archives | Discovered new exit (range 15) 15328 | -6/Archives | Identified exit to Hub_04(d) 15401 | -6/Archives | Unable to access archive contents 15725 | -6/Archives | Unable to access archive contents 15776 | -6/Archives | Entered Hub_04(d) 15776 | -6/Hub_04(d) | Discovered exit to Factory (range 10) 15847 | -6/Hub_04(d) | Core integrity fell below 50% 16138 | -6/Hub_04(d) | Lost 4 parts (3u1w) 16585 | -6/Hub_04(d) | Core integrity fell below 20% 16658 | -6/Hub_04(d) | Lost 6 parts (2n3u1w) 16678 | -6/Hub_04(d) | Destroyed by X-67 Chaingunner with Minigun Last Messages --------------- Downloaded map data. 16646_ K-01 Serf collects debris. 16647_ Acquired Imp. Heat Sink. 16648_ W-25 Informer sends out distress signal. 16650_ Acquired Lgt. Treads. 16650_ K-01 Serf collects debris. 16654_ ALERT: Suspicious intruders detected, dispatching Specialist reinforcements to area. 16655_ K-01 Serf collects debris. 16658_ Quantum Reactor destroyed. 16658_ Critical hit (Blast). 16659_ System corrupted: Matter fused (-5). 16659_ K-01 Serf collects debris. 16661_ Acquired 6 matter. 16663_ Acquired 35 matter. 16663_ K-01 Serf collects debris. 16675_ Acquired 5 matter. 16676_ Cloaking Device destroyed. 16677_ Penetrated by Slug. 16677_ Imp. Medium Treads destroyed. Map ----- +----------------------------------------------------+ | ?# #?# ## #????????????????????? | | ?# #?# ## #????????????????????? | | ?# #?# ## #??????????????####### | | ?# #?# ## #??????????????# | | ?# #?# ## #??????????????# " " | | ?# #?# ## ############???#= " " | | ?# #?# ## ## #???# " " | | ?# #?# ## ## ! #???# | | ?# ### ## ## #???#####+# | | # #####+#### # ######### # | | #! * % # = + | | #%=< %[%*[!%! [H / ###### | | #! % % %=%%%[% ! # #????# " | | #| #####+#### # #????# " | | ######## !!===*## *#####+########### " | | ??#????# """%= ##x=!#?# ] = #% | | ???????# [ ## x%#?## =%+ | | ???????# """ ##^!=#??# """" """"%# | | ???????# ## ^#??# """" """"=#! # | | ???????# !** ##^ #??# """" """" ###### | | ???????# !** ##^ ^#??# """" """" ###### | | ???????# !** ## ^ #??# # | | ???????# ## #??# """" ###### | | ???????# """ ## #??# ]! """" #????? | | ???????# #; #??# !% """" #????? | | ???????##?#######@ #??# ! """" #????? | | ????????????????#% #??# #????? | | ????????????????# #??##############????? | | ????????????????# #????????####????????? | | ????????????????; #????????#""#????????? | | ????????????????# ##########T"#########? | | ????????????????# % ^^ #? | | ????????????????# %[[ = ^^ ## | | ????????????????# [! ^^ | | ????????????????#############" #######+### | | ????????????????????????????#"T#?# | | ????????????????????????????###### | | ????????????????????????????????# "" " " | | ????????????????????????????????## "" " " | | ?????????????????????????????????# "T " " | | ?????????????????????????????????# "" | | ?????????????????????????????????# "" | | ?????????????????????????????????# | | ???????????????????????????????########### | | ???????????????????????????????# | | ???????????????????????????????# | | ?????????????????????????????????????????? | | ?????????????????????????????????????????? | | ?????????????????????????????????????????? | | ????????????????????????????????????????o? | +----------------------------------------------------+ Best States ------------- Heat Dissipation 51 Energy Generation 25 Energy Capacity 350 Matter Stores 300 Matter Capacity 300 Sight Range 22 Robot Scan Range 16 Terrain Scan Range 16 Terrain Scan Density 85 Cloak Strength 2 Armor Coverage 825 Resistance: KI 30 Resistance: TH 20 Resistance: EM 25 Melee Speed Boost 20 Evasion (%) 55 Targeting Accuracy 8 Melee Accuracy 8 Recoil Reduction 4 Offensive Hacking 24 Defensive Hacking 24 Item Schematics ----------------- Lgt. Treads | -9/Materials | Scanalyzed Hvy. Deuterium Engine | -7/Factory | Scanalyzed Combat Drone Bay | -7/Data Miner | Free Lgt. Regenerative Plating | -7/Data Miner | Free Cld. Cesium-ion Thruster | -7/Data Miner | Free Exp. Weapon Shielding | -7/Data Miner | Free Ion Burst Cannon | -7/Data Miner | Free Linear Gravjet | -7/Data Miner | Free Imp. Component Analysis Suite | -7/Data Miner | Free Imp. Plasma Cutter | -7/Data Miner | Free Robot Schematics ------------------ R-10 Processor | -7/Data Miner | Free H-55 Commando | -7/Data Miner | Free B-48 Gladiator | -7/Data Miner | Free B-60 Warrior | -7/Data Miner | Free P-60 Hacker | -7/Data Miner | Free S-27 Virus | -7/Data Miner | Free Fabricated ------------ H-55 Commando | x2 | -6/Factory Repaired ---------- Ion Engine | 65% | -9/Materials Med. Reactive Plating | 26% | -6/Factory Imp. Heavy Armor Plating | 71% | -6/Factory Studied --------- Aluminum Leg | -9/Materials | Hacked Ion Engine | -9/Materials | Hacked Com. Wheel | -6/Factory | Hacked Alien Tech Used ----------------- Core Expander Achievements -------------- Project G-00 Challenges ------------ None Game ------ Seed TerrainActiveRedirector Manual? 0 Play Time 03:22:07 Cumulative 143.6 hours Start 2026.03.06 @ 16:02:35 End 2026.03.07 @ 07:25:53 Sessions 5 Manual Loads 0 Difficulty Rogue Special Mode None Game No. 117 Rogue 117 Adventurer 0 Explorer 0 Win Type - Total 0 Types 0/0/0/0/0/0/0/0/0/0 Lore% 53 Gallery% 48 Achievement% 37 Wizard Run 0 Options --------- Layout 1 ASCII 1 Keyboard 1 Movement Numpad Keybinds 0 Fullscreen 1 Font 24/Smallcaps Map View 50x35 Zoom Use 0% Tactical HUD 1 Map Filters NONE Filters NONE Steam 1 RUN: cf060863-d572-45fd-a7eb-c82ba2ad4c01